bitfinex/quotes_SOLUSD_20250210
["timestamp","ask_amount","ask_price","bid_price","bid_amount"]
[1739204365163,12.01758438,203.33,203.25,11.64111438]
[1739204365362,0.25098,203.3,203.23,11.64111438]
[1739204365557,0.25098,203.28,203.22,0.03]
[1739204366651,31.64111438,203.31,203.23,11.64111438]
[1739204366853,0.25098,203.3,203.23,11.64111438]
[1739204367967,0.25098,203.3,203.25,0.03]
[1739204368279,0.12549,203.29,203.25,0.03]
[1739204368456,0.25098,203.28,203.25,0.03]
[1739204368779,0.063,203.34,203.27,11.64111438]
[1739204369072,0.063,203.34,203.3,11.64111438]
[1739204369763,0.063,203.34,203.32,11.64111438]
[1739204370685,0.063,203.34,203.33,0.73747404]
[1739204371778,0.063,203.34,203.32,12.37856764]
[1739204372079,0.063,203.34,203.32,11.64111438]
[1739204372374,0.063,203.34,203.26,1.5543]
[1739204372375,0.063,203.34,203.3,11.64111438]
[1739204374875,0.063,203.34,203.28,11.64111438]
[1739204376380,0.063,203.34,203.3,11.64111438]
[1739204376981,0.063,203.34,203.32,11.64111438]
[1739204378767,0.063,203.34,203.3,11.64111438]
[1739204378977,0.31398,203.34,203.28,11.64111438]
[1739204379182,0.25098,203.32,203.26,11.64111438]
[1739204380159,0.12549,203.29,203.25,0.03]
[1739204381482,0.25098,203.3,203.25,0.03]
[1739204381681,13.18291438,203.33,203.25,0.03]
[1739204381867,0.37647,203.32,203.25,0.03]
[1739204382690,0.37647,203.32,203.26,11.64111438]
[1739204383074,0.25098,203.32,203.26,11.64111438]
[1739204383563,0.37647,203.32,203.26,11.64111438]
[1739204384383,0.37647,203.32,203.28,11.64111438]
[1739204384584,0.25098,203.32,203.28,11.64111438]
[1739204384967,0.25098,203.32,203.3,11.64111438]
[1739204385367,0.25098,203.32,203.28,11.64111438]
[1739204386677,0.063,203.34,203.3,11.64111438]
[1739204387881,0.31398,203.34,203.28,11.64111438]
[1739204388471,0.31398,203.34,203.3,11.64111438]
[1739204391294,0.063,203.34,203.3,11.64111438]
[1739204391491,0.063,203.34,203.32,11.64111438]
[1739204392199,0.063,203.34,203.3,11.64111438]
[1739204393798,0.063,203.34,203.32,11.64111438]
[1739204394190,0.063,203.34,203.3,11.64111438]
[1739204397987,0.063,203.34,203.32,11.64111438]
[1739204401295,19.81963853,203.44,203.32,11.64111438]
[1739204401296,0.063,203.52,203.39,1.0]
[1739204401497,0.063,203.52,203.48,11.64111438]
[1739204401688,0.12549,203.51,203.44,11.64111438]
[1739204401891,0.37647,203.51,203.42,11.64111438]
[1739204402096,11.70411438,203.52,203.42,11.64111438]
[1739204402097,0.37647,203.49,203.42,11.64111438]
[1739204402680,0.37647,203.49,203.4,11.64111438]
[1739204403603,0.37647,203.47,203.38,11.64111438]
[1739204403807,0.25098,203.43,203.36,11.64111438]
[1739204405118,0.25098,203.45,203.4,11.64111438]
[1739204405634,0.37647,203.47,203.4,11.64111438]
[1739204406889,0.25098,203.47,203.42,11.64111438]
[1739204407296,0.25098,203.47,203.44,11.64111438]
[1739204408613,0.12549,203.45,203.39,11.64111438]
[1739204409301,0.12549,203.43,203.37,11.64111438]
[1739204410008,0.25098,203.44,203.39,11.64111438]
[1739204410190,0.50196,203.47,203.39,11.64111438]
[1739204410593,20.50196,203.47,203.39,11.64111438]
[1739204411497,0.37647,203.45,203.39,11.64111438]
[1739204411807,0.37647,203.45,203.37,11.64111438]
[1739204412916,20.0,203.47,203.41,11.64111438]
[1739204413410,0.25098,203.46,203.41,11.64111438]
[1739204413805,0.12549,203.45,203.39,11.64111438]
[1739204414209,0.12549,203.45,203.37,11.64111438]
[1739204415209,13.18321438,203.48,203.41,11.64111438]
[1739204415426,0.25098,203.47,203.41,11.64111438]
[1739204417220,0.25098,203.47,203.43,11.64111438]
[1739204417748,0.25098,203.47,203.36,14.41184853]
[1739204417749,0.25098,203.47,203.41,11.64111438]
[1739204418200,0.25098,203.45,203.39,11.64111438]
[1739204419422,0.12549,203.42,203.37,11.64111438]
[1739204419927,0.12549,203.42,203.35,11.64111438]
[1739204421410,0.25098,203.43,203.37,11.64111438]
[1739204421613,0.25098,203.43,203.39,11.64111438]
[1739204424230,0.12549,203.42,203.37,11.64111438]
[1739204424429,0.12549,203.42,203.35,56.54111438]
[1739204425213,0.25098,203.43,203.37,11.64111438]
[1739204425420,0.25098,203.43,203.39,11.64111438]
[1739204425827,0.25098,203.43,203.37,11.64111438]
[1739204426815,11.70411438,203.49,203.41,11.64111438]
[1739204427022,0.25098,203.47,203.41,11.64111438]
[1739204428307,0.063,203.49,203.43,11.64111438]
[1739204429035,0.063,203.49,203.45,11.64111438]
[1739204429229,0.063,203.49,203.47,11.64111438]
[1739204434032,0.063,203.49,203.48,0.73692267]
[1739204434369,0.063,203.49,203.47,56.54111438]
[1739204436220,0.12549,203.48,203.47,44.9]
[1739204436841,0.25098,203.48,203.43,11.64111438]
[1739204437430,0.12549,203.48,203.43,11.64111438]
[1739204437835,0.12549,203.48,203.41,11.64111438]
[1739204438034,0.25098,203.44,203.37,11.64111438]
[1739204438957,0.25098,203.44,203.35,11.64111438]
[1739204438958,0.25098,203.42,203.35,11.64111438]
[1739204439135,0.25098,203.4,203.34,0.03]
[1739204439348,0.25098,203.4,203.35,11.64111438]
[1739204440042,0.25098,203.4,203.34,0.03]
[1739204440248,0.25098,203.38,203.34,0.03]
[1739204443354,0.12549,203.35,203.34,0.03]
[1739204443557,12.01758438,203.35,203.34,0.03]
[1739204445756,0.25098,203.35,203.34,0.03]
[1739204445953,0.12549,203.35,203.34,0.03]
[1739204446760,0.12549,203.35,203.34,11.67111438]
[1739204447276,0.12549,203.35,203.34,0.03]
[1739204450670,0.37647,203.35,203.34,0.03]
[1739204451877,18.70591853,203.35,203.34,0.03]
[1739204452055,30.34703291,203.35,203.34,0.03]
[1739204452253,0.37647,203.31,203.25,0.03]
[1739204452553,12.01758438,203.28,203.25,0.03]
[1739204452948,0.37647,203.28,203.25,0.03]
[1739204453653,20.0,203.31,203.25,0.03]
[1739204453852,0.25098,203.3,203.25,0.03]
[1739204454374,11.89209438,203.3,203.25,0.03]
[1739204454863,0.25098,203.3,203.26,11.64111438]
[1739204455359,0.25098,203.3,203.27,11.64111438]
[1739204455980,0.25098,203.3,203.28,11.64111438]
[1739204456481,8.0911,203.34,203.28,11.64111438]
[1739204456774,13.53733853,203.38,203.31,11.64111438]
[1739204456775,25.17845291,203.38,203.31,11.64111438]
[1739204456971,0.37647,203.37,203.3,11.64111438]
[1739204457577,0.25098,203.37,203.32,11.64111438]
[1739204457794,0.37647,203.38,203.32,11.64111438]
[1739204459190,0.25098,203.38,203.34,11.64111438]
[1739204459565,0.25098,203.38,203.32,11.64111438]
[1739204460768,0.37647,203.38,203.3,11.64111438]
[1739204461088,12.01758438,203.38,203.3,11.64111438]
[1739204461498,0.25098,203.38,203.34,11.64111438]
[1739204461873,0.25098,203.38,203.32,11.67111438]
[1739204462083,5.04259,203.37,203.32,0.03]
[1739204462380,11.89209438,203.36,203.32,0.03]
[1739204462589,0.25098,203.33,203.32,0.03]
[1739204462808,0.37647,203.33,203.32,0.03]
[1739204463785,25.55492291,203.33,203.32,0.03]
[1739204464292,34.53302291,203.33,203.32,0.03]
[1739204466276,34.53302291,203.33,203.25,0.03]
[1739204466277,20.50196,203.29,203.25,0.03]
[1739204466471,12.01758438,203.26,203.25,0.03]
[1739204469479,25.55492291,203.26,203.25,0.03]
[1739204469675,30.47472291,203.26,203.25,0.03]
[1739204469996,0.37647,203.26,203.25,0.03]
[1739204471593,0.25098,203.26,203.25,0.03]
[1739204472687,12.01758438,203.26,203.25,0.03]
[1739204473386,0.37647,203.26,203.25,0.03]
[1739204473591,0.25098,203.26,203.25,0.03]
[1739204474096,25.55492291,203.26,203.25,0.03]
[1739204474394,32.11772291,203.26,203.25,0.03]
[1739204477698,13.66058438,203.26,203.25,0.03]
[1739204478002,35.55680853,203.26,203.25,0.03]
[1739204478205,1.0,203.22,203.07,11.64111438]
[1739204478383,11.64111438,203.14,203.05,11.64111438]
[1739204478578,11.64111438,203.16,203.07,11.64111438]
[1739204478802,11.64111438,203.16,203.09,11.64111438]
[1739204478981,0.37647,203.15,203.09,11.64111438]
[1739204479296,0.25098,203.15,203.09,11.64111438]
[1739204480382,0.25098,203.17,203.09,11.64111438]
[1739204480701,0.25098,203.17,203.14,11.64111438]
[1739204480998,0.25098,203.18,203.12,11.67111438]
[1739204481302,0.12549,203.17,203.12,0.03]
[1739204482301,0.25098,203.16,203.12,0.03]
[1739204482482,0.37647,203.14,203.12,0.03]
[1739204482883,0.25098,203.14,203.12,0.03]
[1739204483098,31.64111438,203.19,203.12,0.03]
[1739204483406,0.37647,203.18,203.12,0.03]
[1739204483906,0.12549,203.16,203.12,0.03]
[1739204484294,11.64111438,203.21,203.13,11.67111438]
[1739204484480,11.64111438,203.23,203.15,11.64111438]
[1739204484679,0.25098,203.22,203.15,11.64111438]
[1739204485404,11.76660438,203.25,203.17,11.64111438]
[1739204485704,0.25098,203.24,203.17,18.61777583]
[1739204486203,0.25098,203.24,203.19,18.61777583]
[1739204486782,0.25098,203.24,203.17,18.64777583]
[1739204487884,18.86875583,203.22,203.17,0.03]
[1739204488102,0.25098,203.19,203.17,0.03]
[1739204488793,18.86875583,203.19,203.17,0.03]
[1739204490085,13.78831853,203.18,203.17,0.03]
[1739204492107,0.37647,203.18,203.17,0.03]
[1739204492310,0.25098,203.18,203.17,0.03]
[1739204494095,0.12549,203.18,203.17,0.03]
[1739204494289,18.61777583,203.23,203.17,0.03]
[1739204494489,18.61777583,203.25,203.17,18.64777583]
[1739204494811,0.25098,203.24,203.17,18.64777583]
[1739204495919,0.25098,203.24,203.17,19.38578071]
[1739204497028,0.25098,203.24,203.17,18.64777583]
[1739204497617,0.25098,203.22,203.17,18.64777583]
[1739204497914,0.25098,203.24,203.17,18.64777583]
[1739204500209,0.12549,203.22,203.17,18.64777583]
[1739204500412,0.12549,203.22,203.17,0.03]
[1739204500992,18.61777583,203.25,203.17,18.64777583]
[1739204501210,0.25098,203.24,203.17,18.64777583]
[1739204501695,0.12549,203.22,203.17,18.64777583]
[1739204503534,0.12549,203.24,203.17,18.64777583]
[1739204503825,0.12549,203.23,203.17,18.64777583]
[1739204505712,0.12549,203.23,203.18,11.63633974]
[1739204506228,0.25098,203.25,203.2,11.63633974]
[1739204510345,0.31398,203.25,203.2,11.63633974]
[1739204512719,0.18849,203.25,203.22,11.63633974]
[1739204512939,0.18849,203.25,203.24,11.63633974]
[1739204514134,0.063,203.25,203.24,11.63633974]
[1739204515215,0.063,203.25,203.22,11.63633974]
[1739204516639,0.18849,203.25,203.22,11.63633974]
[1739204517138,0.18849,203.25,203.19,44.9]
[1739204517139,0.25098,203.24,203.2,11.63633974]
[1739204517442,0.25098,203.24,203.19,44.9]
[1739204517740,0.18849,203.25,203.18,13.23613974]
[1739204517908,0.31398,203.25,203.17,11.66633974]
[1739204518114,0.12549,203.21,203.17,0.03]
[1739204518818,0.25098,203.22,203.17,0.03]
[1739204520344,0.25098,203.2,203.17,0.03]
[1739204520918,11.88731974,203.2,203.17,0.03]
[1739204521242,0.12549,203.18,203.17,0.03]
[1739204522132,0.12549,203.19,203.17,0.03]
[1739204522355,0.25098,203.19,203.17,0.03]
[1739204522838,11.88731974,203.19,203.17,0.03]
[1739204523216,0.50196,203.18,203.17,0.03]
[1739204523423,13.91380853,203.18,203.17,0.03]
[1739204524439,18.83550853,203.18,203.17,0.03]
[1739204524649,0.25098,203.18,203.17,0.03]
[1739204525922,0.12549,203.17,203.13,11.65514432]
[1739204526345,0.12549,203.18,203.13,11.65514432]
[1739204526638,0.12549,203.2,203.17,11.63633974]
[1739204526841,11.69933974,203.25,203.17,11.63633974]
[1739204527024,0.50196,203.24,203.17,11.63633974]
[1739204527226,0.37647,203.22,203.17,11.63633974]
[1739204527933,31.69933974,203.25,203.17,11.63633974]
[1739204528135,11.69933974,203.25,203.19,11.63633974]
[1739204528321,0.063,203.25,203.21,11.63633974]
[1739204528649,0.31398,203.25,203.21,11.63633974]
[1739204529028,0.31398,203.25,203.23,11.63633974]
[1739204529029,0.18849,203.25,203.23,11.63633974]
[1739204530646,0.063,203.25,203.23,11.63633974]
[1739204534242,0.063,203.25,203.23,56.53633974]
[1739204534541,0.063,203.25,203.24,0.73784822]
[1739204534747,0.063,203.25,203.23,57.27412511]
[1739204534943,0.063,203.25,203.23,56.53633974]
[1739204536053,0.12549,203.24,203.23,44.9]
[1739204536360,0.25098,203.24,203.19,11.63633974]
[1739204536552,0.12549,203.24,203.19,11.63633974]
[1739204537655,0.50196,203.23,203.17,11.66633974]
[1739204538520,11.69933974,203.25,203.17,11.66633974]
[1739204538924,0.063,203.25,203.21,11.63633974]
[1739204539120,0.31398,203.25,203.21,11.63633974]
[1739204540226,0.18849,203.25,203.23,11.63633974]
[1739204541548,0.063,203.25,203.23,11.63633974]
[1739204542967,0.063,203.25,203.24,14.14970014]
[1739204543352,0.063,203.25,203.24,59.04970014]
[1739204544644,0.063,203.34,203.24,59.04970014]
[1739204544645,0.063,203.34,203.27,20.0]
[1739204544844,0.063,203.34,203.32,11.63633974]
[1739204545149,0.18849,203.34,203.33,11.63633974]
[1739204545537,0.18849,203.34,203.31,11.63633974]
[1739204546474,0.063,203.34,203.33,11.63633974]
[1739204546968,0.063,203.34,203.32,11.63633974]
[1739204547163,0.063,203.34,203.28,44.9]
[1739204547475,0.37647,203.33,203.28,44.9]
[1739204547653,0.25098,203.33,203.28,44.9]
[1739204547970,5.16908,203.33,203.28,44.9]
[1739204548169,16.80541974,203.33,203.28,44.9]
[1739204548863,11.88731974,203.33,203.28,44.9]
[1739204549975,0.25098,203.33,203.28,44.9]
[1739204550537,0.25098,203.33,203.28,56.53633974]
[1739204550752,0.25098,203.33,203.28,11.63633974]
[1739204550955,0.25098,203.33,203.3,11.63633974]
[1739204551173,0.063,203.34,203.3,11.63633974]
[1739204551359,0.063,203.34,203.32,11.63633974]
[1739204551973,0.063,203.34,203.3,11.63633974]
[1739204552775,0.063,203.34,203.32,11.63633974]
[1739204553465,0.063,203.34,203.33,11.63633974]
[1739204554268,0.063,203.34,203.32,11.63633974]
[1739204554765,0.063,203.34,203.31,11.63633974]
[1739204555661,0.063,203.34,203.32,11.63633974]
[1739204555844,0.063,203.34,203.33,11.63633974]
[1739204559747,0.31398,203.34,203.28,11.63633974]
[1739204559968,0.31398,203.34,203.3,11.63633974]
[1739204560459,0.31398,203.34,203.31,11.63633974]
[1739204562371,0.31398,203.34,203.32,11.63633974]
[1739204563473,0.063,203.34,203.33,11.63633974]
[1739204565055,0.063,203.34,203.32,11.63633974]
[1739204565263,0.063,203.34,203.3,11.63633974]
[1739204565472,0.31398,203.34,203.29,11.63633974]
[1739204566348,0.31398,203.34,203.28,11.63633974]
[1739204567374,0.31398,203.34,203.29,11.63633974]
[1739204567573,0.31398,203.34,203.31,11.63633974]
[1739204567958,0.31398,203.34,203.3,11.63633974]
[1739204568275,0.31398,203.34,203.29,11.63633974]
[1739204569778,0.31398,203.34,203.31,11.63633974]
[1739204571574,0.063,203.34,203.32,11.63633974]
[1739204574352,0.063,203.34,203.3,11.63633974]
[1739204575085,0.063,203.34,203.32,11.63633974]
[1739204575559,0.063,203.34,203.32,56.53633974]
[1739204576600,0.063,203.34,203.33,0.73747971]
[1739204577660,0.063,203.34,203.33,12.37381945]
[1739204578078,0.063,203.34,203.33,70.68566798]
[1739204578873,0.063,203.34,203.33,57.27381945]
[1739204579578,0.063,203.34,203.33,56.53633974]
[1739204583385,0.063,203.34,203.33,44.9]
[1739204583564,0.063,203.34,203.33,11.63633974]
[1739204588191,0.063,203.34,203.32,92.83633974]
[1739204589400,0.063,203.34,203.32,11.63633974]
[1739204590897,0.18849,203.34,203.31,0.03]
[1739204592794,0.25098,203.33,203.31,0.03]
[1739204594783,0.18849,203.34,203.31,0.03]
[1739204595010,0.12549,203.33,203.31,0.03]
[1739204597803,0.25098,203.33,203.31,0.03]
[1739204598301,0.12549,203.33,203.31,0.03]
[1739204599105,0.31398,203.34,203.31,0.03]
[1739204601305,0.50196,203.32,203.31,0.03]
[1739204603704,5.42026,203.32,203.31,0.03]
[1739204605103,0.50196,203.32,203.31,0.03]
[1739204606210,5.42026,203.32,203.31,0.03]
[1739204608916,18.83210853,203.32,203.31,0.03]
[1739204611418,30.46844827,203.32,203.31,0.03]
[1739204612185,18.83210853,203.32,203.31,0.03]
[1739204613485,30.46844827,203.32,203.31,0.03]
[1739204613688,26.27500467,203.32,203.31,0.03]
[1739204616692,21.35670467,203.32,203.31,0.03]
[1739204617103,26.27500467,203.32,203.31,0.03]
[1739204617609,21.35670467,203.32,203.31,0.03]
[1739204617807,26.27500467,203.32,203.31,0.03]
[1739204619318,13.91380853,203.32,203.31,0.03]
[1739204619513,0.50196,203.32,203.31,0.03]
[1739204619894,20.50196,203.32,203.31,0.03]
[1739204620614,0.50196,203.32,203.31,0.03]
[1739204620801,0.37647,203.32,203.31,0.03]
[1739204621004,0.25098,203.32,203.31,7.47289614]
[1739204623122,0.25098,203.32,203.31,0.03]
[1739204623628,0.37647,203.32,203.31,0.03]
[1739204624619,0.50196,203.32,203.31,0.03]
[1739204624826,5.42026,203.32,203.31,0.03]
[1739204625122,30.45693158,203.32,203.31,0.03]
[1739204628598,0.50196,203.32,203.31,0.03]
[1739204630130,0.25098,203.32,203.31,0.03]
[1739204630506,0.37647,203.32,203.31,0.03]
[1739204632218,0.50196,203.32,203.31,0.03]
[1739204636532,0.37647,203.32,203.31,0.03]
[1739204637035,0.50196,203.32,203.31,0.03]
[1739204640535,5.42026,203.32,203.31,0.03]
[1739204640711,18.83210853,203.32,203.31,0.03]
[1739204646947,5.42026,203.32,203.31,0.03]
[1739204647123,18.83210853,203.32,203.31,0.03]
[1739204649232,0.50196,203.32,203.31,0.03]
[1739204649439,0.50196,203.32,203.31,7.47209977]
[1739204649636,0.12549,203.32,203.31,7.47209977]
[1739204649945,0.25098,203.32,203.31,7.47209977]
[1739204651759,0.25098,203.32,203.31,11.6513969]
[1739204652039,0.063,203.33,203.31,11.6513969]
[1739204652244,0.063,203.33,203.31,12.38892696]
[1739204654046,0.063,203.33,203.31,11.6513969]
[1739204654547,0.063,203.33,203.32,11.6213969]
[1739204655946,0.063,203.33,203.32,33.16204543]
[1739204656127,0.063,203.34,203.33,13.41184853]
[1739204656447,0.063,203.34,203.33,14.14926509]
[1739204656622,0.063,203.38,203.33,14.14926509]
[1739204656623,0.063,203.38,203.36,20.0]
[1739204656821,0.063,203.38,203.37,23.98009568]
[1739204657021,0.063,203.38,203.37,68.88009568]
[1739204657237,0.063,203.38,203.37,82.29194421]
[1739204657435,0.063,203.44,203.37,82.29194421]
[1739204657436,0.063,203.44,203.4,20.0]
[1739204657641,0.063,203.44,203.43,11.6213969]
[1739204658948,0.18849,203.44,203.43,11.6213969]
[1739204660165,0.43947,203.44,203.43,11.6213969]
[1739204660480,0.063,203.44,203.4,44.93]
[1739204660664,0.063,203.44,203.43,11.6213969]
[1739204663938,0.063,203.44,203.43,12.35844249]
[1739204664134,0.063,203.44,203.43,151.87029102]
[1739204664333,0.063,203.44,203.43,151.13324543]
[1739204666166,0.063,203.44,203.43,150.63324543]
[1739204666660,0.063,203.44,203.43,137.2213969]
[1739204675566,0.063,203.44,203.43,92.3213969]
[1739204675770,0.063,203.44,203.43,88.62764872]
[1739204677170,0.063,203.46,203.44,13.41184853]
[1739204677373,0.063,203.47,203.46,40.83949725]
[1739204677674,0.063,203.47,203.46,171.10811601]
[1739204679378,0.063,203.48,203.47,13.41184853]
[1739204679573,0.18849,203.54,203.47,37.34121519]
[1739204679774,0.18849,203.54,203.48,25.00811601]
[1739204680361,0.18849,203.54,203.48,36.60438349]
[1739204681883,0.18849,203.54,203.48,25.00811601]
[1739204682271,0.18849,203.54,203.48,11.59626748]
[1739204683587,0.12549,203.51,203.48,11.59626748]
[1739204686078,0.063,203.54,203.48,11.59626748]
[1739204687775,0.063,203.54,203.48,36.60438349]
[1739204688286,0.063,203.54,203.48,25.00811601]
[1739204690467,0.063,203.54,203.48,151.10811601]
[1739204690669,0.063,203.54,203.51,33.41184853]
[1739204690868,0.063,203.54,203.51,157.69626748]
[1739204691068,0.063,203.54,203.51,126.1]
[1739204693989,0.18849,203.52,203.5,11.59626748]
[1739204694971,0.37647,203.51,203.5,11.59626748]
[1739204695190,0.25098,203.51,203.48,11.59626748]
[1739204695388,0.37647,203.51,203.48,11.59626748]
[1739204696791,0.37647,203.51,203.48,11.65926748]
[1739204697104,0.40647,203.51,203.48,11.65926748]
[1739204699903,0.40647,203.51,203.48,7.48831154]
[1739204700502,0.12549,203.49,203.48,7.48831154]
[1739204700797,0.50196,203.49,203.48,0.063]
[1739204701984,26.25332007,203.49,203.48,0.063]
[1739204702295,13.91380853,203.49,203.48,0.063]
[1739204702796,18.82800853,203.49,203.48,0.063]
[1739204702996,13.91380853,203.49,203.48,0.063]
[1739204703179,18.82800853,203.49,203.48,0.063]
[1739204703583,34.46682007,203.49,203.48,0.063]
[1739204705897,20.50196,203.45,203.43,0.063]
[1739204706101,21.33912007,203.44,203.43,0.063]
[1739204707401,26.25452007,203.44,203.43,0.063]
[1739204708380,34.46802007,203.44,203.43,0.063]
[1739204712292,22.12730853,203.44,203.43,0.063]
[1739204713306,29.55262007,203.44,203.43,0.063]
[1739204713481,34.46802007,203.44,203.43,0.063]
[1739204715607,22.12730853,203.44,203.43,0.063]
[1739204716989,34.46802007,203.44,203.43,0.063]
[1739204718815,22.93092007,203.44,203.43,0.063]
[1739204719011,0.50196,203.44,203.43,0.063]
[1739204719181,0.03,203.49,203.43,7.48831154]
[1739204719387,0.03,203.49,203.47,7.42531154]
[1739204719788,0.03,203.49,203.45,7.42531154]
[1739204720304,0.25098,203.47,203.45,7.42531154]
[1739204720902,0.12549,203.47,203.45,7.42531154]
[1739204721094,0.03,203.49,203.45,7.42531154]
[1739204721295,0.03,203.49,203.48,7.42531154]
[1739204723289,0.03,203.49,203.48,53.06221341]
[1739204723616,0.03,203.49,203.48,88.5467448]
[1739204724192,0.03,203.49,203.48,76.9531476]
[1739204724903,0.03,203.49,203.48,63.54129907]
[1739204727688,0.03,203.49,203.48,56.4935972]
[1739204728991,0.03,203.49,203.48,11.5935972]
[1739204730516,0.03,203.49,203.48,12.33047795]
[1739204730825,0.03,203.49,203.48,23.92407515]
[1739204731824,0.03,203.49,203.48,12.33047795]
[1739204732829,0.03,203.49,203.48,11.5935972]
[1739204736704,0.03,203.49,203.47,11.5935972]
[1739204737210,0.03,203.49,203.48,11.5935972]
[1739204743628,0.03,203.49,203.47,7.42652327]
[1739204744417,0.03,203.49,203.48,0.063]
[1739204744818,0.53196,203.49,203.48,0.063]
[1739204745016,13.94380853,203.49,203.48,0.063]
[1739204745213,21.3703318,203.49,203.48,0.063]
[1739204745409,28.0187318,203.49,203.48,0.063]
[1739204746716,32.9329318,203.49,203.48,0.063]
[1739204747738,37.11921777,203.49,203.48,0.063]
[1739204748236,20.59220853,203.49,203.48,0.063]
[1739204749037,25.50640853,203.49,203.48,0.063]
[1739204750015,7.18036,203.49,203.48,0.063]
[1739204750220,0.53196,203.49,203.48,11.67580924]
[1739204750927,0.28098,203.49,203.48,11.67580924]
[1739204751615,0.15549,203.49,203.48,11.67580924]
[1739204752131,0.03,203.49,203.48,11.67580924]
[1739204752317,0.03,203.49,203.48,12.41274565]
[1739204753036,0.03,203.49,203.48,11.67580924]
[1739204757414,0.03,203.49,203.48,149.38861848]
[1739204757614,0.03,203.51,203.5,20.0]
[1739204757814,0.03,203.51,203.5,43.96246069]
[1739204758026,0.03,203.51,203.5,170.06246069]
[1739204758249,0.03,203.51,203.5,169.32561848]
[1739204758638,0.063,203.52,203.5,169.32561848]
[1739204758821,0.063,203.52,203.51,12.34955084]
[1739204760751,0.063,203.53,203.51,26.76139937]
[1739204760951,0.063,203.56,203.54,20.0]
[1739204761133,0.063,203.56,203.55,12.34945197]
[1739204764654,0.063,203.56,203.55,57.24945197]
[1739204766628,0.25098,203.64,203.55,151.8613005]
[1739204766851,0.25098,203.64,203.63,11.61280924]
[1739204767235,0.063,203.65,203.63,11.61280924]
[1739204767635,0.063,203.65,203.64,11.61280924]
[1739204769736,0.18849,203.65,203.64,11.61280924]
[1739204771665,0.12549,203.64,203.63,11.61280924]
[1739204772557,0.063,203.65,203.63,11.61280924]
[1739204772755,0.063,203.65,203.64,11.61280924]
[1739204773070,0.063,203.67,203.66,21.0]
[1739204773242,0.03,203.77,203.66,21.0]
[1739204773243,0.03,203.77,203.68,11.61280924]
[1739204773441,0.03,203.77,203.69,12.34891164]
[1739204773853,0.12549,203.75,203.69,11.61280924]
[1739204774869,0.12549,203.76,203.69,11.61280924]
[1739204774870,0.25098,203.74,203.69,11.61280924]
[1739204776247,0.03,203.77,203.69,12.34903072]
[1739204776553,0.03,203.77,203.69,57.24903072]
[1739204777339,0.03,203.77,203.76,1.0]
[1739204777646,25.20877005,203.95,203.8,20.0]
[1739204777964,7.69276081,203.95,203.88,11.61280924]
[1739204778643,0.50196,203.94,203.88,11.61280924]
[1739204778838,0.03,203.91,203.88,11.61280924]
[1739204779862,0.12549,203.9,203.88,11.61280924]
[1739204782883,0.25098,203.88,203.83,56.51280924]
[1739204783040,0.12549,203.85,203.81,11.61280924]
[1739204783354,0.12549,203.83,203.79,11.61280924]
[1739204783560,0.50196,203.84,203.78,11.61280924]
[1739204783741,12.11476924,203.84,203.76,11.61280924]
[1739204783941,0.12549,203.8,203.76,11.61280924]
[1739204785755,20.0,203.82,203.78,11.61280924]
[1739204785958,0.25098,203.81,203.78,11.61280924]
[1739204786145,20.25098,203.81,203.78,11.61280924]
[1739204786465,20.0,203.81,203.78,11.61280924]
[1739204786640,0.25098,203.8,203.78,11.61280924]
[1739204789882,0.25098,203.79,203.76,11.67580924]
[1739204790048,0.37647,203.77,203.76,0.063]
[1739204792075,5.40936,203.77,203.76,0.063]
[1739204792371,30.43401777,203.77,203.76,0.063]